bitfinex/quotes_SOLUSD_20240814
["timestamp","ask_amount","ask_price","bid_price","bid_amount"]
[1723645922046,65.0,147.22,147.13,20.0]
[1723645922336,20.0,147.2,147.12,6.5822]
[1723645922741,65.0,147.19,147.12,6.5822]
[1723645922949,20.0,147.17,147.12,6.5822]
[1723645923149,20.0,147.17,147.07,6.5957]
[1723645923442,20.0,147.15,147.07,6.5957]
[1723645924154,20.0,147.15,147.03,6.0629]
[1723645924350,20.0,147.15,147.03,12.8641]
[1723645924537,20.0,147.12,147.03,6.0629]
[1723645925523,20.0,147.12,147.0,65.18845439]
[1723645925524,20.0,147.09,147.0,7.10595439]
[1723645925712,20.0,147.11,147.0,6.8025]
[1723645925922,20.0,147.11,147.01,6.8021]
[1723645926138,20.0,147.1,147.0,65.19293085]
[1723645926853,20.0,147.07,147.01,20.0]
[1723645927066,20.0,147.07,146.98,6.124]
[1723645927853,20.0,147.05,146.98,6.124]
[1723645928535,20.0,147.03,146.98,6.124]
[1723645928856,20.0,147.03,146.96,15.8784]
[1723645929425,20.0,147.05,146.94,0.8426791]
[1723645929426,20.0,147.01,146.94,0.8426791]
[1723645929841,20.0,147.03,146.94,0.8426791]
[1723645930037,20.0,147.02,146.94,0.8426791]
[1723645930234,40.0,147.02,146.94,0.8426791]
[1723645931227,20.0,147.0,146.94,0.8426791]
[1723645931637,20.0,146.98,146.94,0.8426791]
[1723645933153,20.0,146.96,146.94,0.8426791]
[1723645933872,20.0,146.97,146.94,0.8426791]
[1723645934030,20.0,146.99,146.94,0.8426791]
[1723645935235,20.0,146.97,146.94,0.8426791]
[1723645935444,20.0,146.95,146.94,0.8426791]
[1723645935968,40.0,146.95,146.94,0.8426791]
[1723645936465,60.0,146.95,146.94,0.8426791]
[1723645936666,105.0,146.95,146.94,0.8426791]
[1723645937048,105.0,146.95,146.87,6.2668]
[1723645937049,20.0,146.93,146.87,6.2668]
[1723645938565,20.0,146.93,146.83,6.3225]
[1723645939081,71.28,146.93,146.83,6.3225]
[1723645939267,20.0,146.91,146.83,6.3225]
[1723645939452,20.0,146.9,146.79,7.93055649]
[1723645939647,40.0,146.9,146.79,0.8426791]
[1723645939951,20.0,146.9,146.79,0.8426791]
[1723645940143,40.0,146.9,146.79,0.8426791]
[1723645940374,20.0,146.87,146.79,0.8426791]
[1723645940545,62.93,146.87,146.79,0.8426791]
[1723645941371,42.93,146.87,146.79,0.8426791]
[1723645941674,20.0,146.85,146.79,0.8426791]
[1723645943557,20.0,146.87,146.79,0.8426791]
[1723645943762,20.0,146.86,146.79,0.8426791]
[1723645943962,20.0,146.85,146.79,0.8426791]
[1723645944150,20.0,146.83,146.79,0.8426791]
[1723645944673,20.0,146.8,146.79,0.8426791]
[1723645945373,20.0,146.75,146.67,6.0726]
[1723645945874,51.53,146.76,146.64,0.8426791]
[1723645945875,20.0,146.72,146.64,0.8426791]
[1723645946183,20.0,146.7,146.64,0.8426791]
[1723645946547,20.0,146.67,146.64,0.8426791]
[1723645946746,20.0,146.69,146.64,0.8426791]
[1723645946963,40.0,146.73,146.64,0.8426791]
[1723645947154,35.948,146.76,146.65,6.8185]
[1723645947462,20.0,146.76,146.64,0.8426791]
[1723645947651,20.0,146.78,146.65,74.3891]
[1723645948168,258.9,146.82,146.72,6.8155]
[1723645948366,258.9,146.82,146.68,51.53]
[1723645948367,401.7,146.83,146.73,45.0]
[1723645948669,20.0,146.78,146.66,20.0]
[1723645948852,20.0,146.78,146.67,45.0]
[1723645949054,20.0,146.78,146.68,26.8173]
[1723645949264,20.0,146.78,146.69,45.0]
[1723645949477,20.0,146.78,146.7,20.0]
[1723645949847,20.0,146.8,146.71,45.0]
[1723645950051,20.0,146.82,146.72,6.8156]
[1723645950295,20.0,146.8,146.71,45.0]
[1723645950495,20.0,146.78,146.7,20.0]
[1723645951187,91.53,146.81,146.69,20.0]
[1723645951381,40.0,146.81,146.68,51.53]
[1723645951582,2.67968457,146.85,146.71,51.53]
[1723645951583,20.0,146.85,146.71,51.53]
[1723645951766,67.7048,146.87,146.74,51.53]
[1723645951767,16.1748,146.87,146.74,51.53]
[1723645951971,20.0,146.86,146.75,65.0]
[1723645952181,20.0,146.86,146.76,6.8137]
[1723645952381,258.9,146.88,146.77,65.0]
[1723645952382,20.0,146.88,146.77,65.0]
[1723645952588,16.2941,146.92,146.77,65.0]
[1723645952589,36.2941,146.92,146.82,6.811]
[1723645952797,20.0,146.89,146.77,51.53]
[1723645952994,20.0,146.91,146.78,65.0]
[1723645953170,48.66112,147.03,146.8,51.53]
[1723645953372,20.0,147.0,146.9,6.8073]
[1723645953696,20.0,146.99,146.91,20.0]
[1723645954497,71.53,147.01,146.9,6.4721]
[1723645954679,20.0,147.01,146.91,71.8064]
[1723645955066,20.0,147.03,146.91,71.8064]
[1723645955275,20.0,147.03,146.91,65.0]
[1723645955581,20.0,147.06,146.97,6.804]
[1723645955776,20.0,147.06,146.98,45.0]
[1723645956096,92.8983,147.1,146.95,51.53]
[1723645956279,71.53,147.1,146.96,65.0]
[1723645956596,20.0,147.12,147.0,6.8024]
[1723645956777,20.0,147.15,147.03,6.8011]
[1723645956978,20.0,147.1,147.01,45.0]
[1723645957188,20.0,147.1,147.02,20.0]
[1723645957690,20.0,147.1,146.98,58.3335]
[1723645957899,20.0,147.1,146.96,2.16627219]
[1723645958074,20.0,147.1,146.98,51.53]
[1723645958273,20.0,147.1,146.99,65.0]
[1723645958477,20.0,147.15,147.01,51.53]
[1723645958770,20.0,147.13,147.02,71.4255]
[1723645958970,20.0,147.11,147.02,71.4255]
[1723645959171,51.53,147.14,147.02,71.4255]
[1723645959395,20.0,147.15,147.02,71.4255]
[1723645959770,20.0,147.15,147.06,6.7998]
[1723645959990,20.0,147.15,147.02,71.4255]
[1723645959991,20.0,147.15,147.07,45.0]
[1723645960177,20.0,147.15,147.05,6.8003]
[1723645960376,20.0,147.14,147.02,71.4255]
[1723645960594,20.0,147.15,147.04,51.53]
[1723645960794,20.0,147.15,147.05,65.0]
[1723645961005,20.0,147.15,147.02,6.4255]
[1723645961006,20.0,147.11,147.02,6.4255]
[1723645961177,20.0,147.11,147.03,20.0]
[1723645961496,20.0,147.1,147.02,6.4255]
[1723645961788,20.0,147.1,146.97,6.8036]
[1723645962007,20.0,147.09,146.95,57.7868]
[1723645962177,20.0,147.09,146.95,59.97146982]
[1723645962374,71.53,147.12,147.01,6.8021]
[1723645962683,20.0,147.11,147.02,6.8017]
[1723645962999,20.0,147.11,146.99,51.53]
[1723645963202,20.0,147.11,147.0,20.0]
[1723645963398,20.0,147.11,147.02,6.8013]
[1723645963709,71.53,147.14,147.03,65.0]
[1723645963710,20.0,147.13,147.03,65.0]
[1723645964201,20.0,147.08,146.95,8.44146982]
[1723645964409,20.0,147.08,146.95,6.2568]
[1723645964577,20.0,147.06,146.95,6.2568]
[1723645964975,51.53,147.07,146.9,51.53]
[1723645964976,20.0,147.04,146.9,51.53]
[1723645965209,20.0,147.02,146.91,6.8067]
[1723645965410,40.0,147.02,146.9,6.2619]
[1723645965631,71.53,147.04,146.95,6.8049]
[1723645965799,20.0,147.06,146.9,6.2619]
[1723645965800,20.0,147.03,146.9,6.2619]
[1723645966090,258.9,147.08,146.9,6.2619]
[1723645966091,278.9,147.08,146.95,51.53]
[1723645966298,20.0,147.07,146.98,6.8033]
[1723645966514,20.0,147.07,146.95,51.53]
[1723645966721,20.0,147.07,146.99,6.8028]
[1723645966890,20.0,147.09,146.99,6.8028]
[1723645967089,20.0,147.08,146.97,6.804]
[1723645967309,20.0,147.07,146.98,65.0]
[1723645967510,20.0,147.07,146.98,71.8035]
[1723645967809,20.0,147.07,146.98,65.0]
[1723645968407,20.0,147.06,146.92,54.28229057]
[1723645968613,71.53,147.07,146.95,6.8049]
[1723645968614,51.53,147.07,146.95,6.8049]
[1723645968834,20.0,147.09,146.98,51.53]
[1723645969043,20.0,147.12,146.99,20.95841836]
[1723645969318,20.0,147.09,146.99,20.0]
[1723645969525,20.0,147.11,146.99,20.0]
[1723645969698,51.53,147.12,146.99,20.0]
[1723645969699,20.0,147.09,146.99,20.0]
[1723645969903,20.0,147.09,146.97,26.8041]
[1723645970099,20.0,147.09,146.98,45.0]
[1723645970100,71.53,147.09,146.98,45.0]
[1723645970412,20.0,147.07,146.99,20.0]
[1723645970595,20.0,147.07,146.97,20.0]
[1723645970794,20.0,147.05,146.97,20.0]
[1723645971030,20.0,147.07,146.93,20.0]
[1723645971403,20.0,147.07,146.96,6.8045]
[1723645971595,20.0,147.07,146.97,20.0]
[1723645972309,20.0,147.07,146.96,20.0]
[1723645972497,20.0,147.07,146.97,45.0]
[1723645972699,51.53,147.06,146.98,20.0]
[1723645973402,40.0,147.05,146.92,51.53]
[1723645973622,40.0,147.05,146.93,6.8058]
[1723645973837,60.0,147.05,146.93,6.8058]
[1723645974398,20.0,147.02,146.89,51.53]
[1723645974600,20.0,147.0,146.85,6.0697]
[1723645974823,65.0,146.99,146.87,6.8086]
[1723645975105,20.0,146.98,146.85,12.879]
[1723645975325,20.0,146.95,146.8,80.89279006]
[1723645975526,51.53,146.94,146.81,6.8114]
[1723645976037,40.0,146.93,146.8,20.28119006]
[1723645976243,71.53,146.91,146.8,7.06829006]
[1723645976756,65.0,146.9,146.79,6.8122]
[1723645977124,20.0,146.89,146.78,6.8128]
[1723645977323,20.0,146.89,146.77,65.4424082]
[1723645977634,65.0,146.9,146.74,22.2713]
[1723645977635,20.0,146.87,146.74,22.2713]
[1723645977814,20.0,146.87,146.75,30.0]
[1723645978012,20.0,146.87,146.75,37.10209162]
[1723645978234,20.0,146.86,146.75,37.10209162]
[1723645978507,20.0,146.86,146.72,51.53]
[1723645978711,20.0,146.87,146.75,7.10450859]
[1723645979137,20.0,146.87,146.72,51.53]
[1723645979352,20.0,146.87,146.75,7.10179692]
[1723645979645,20.0,146.87,146.75,51.53]
[1723645979840,45.0,146.9,146.75,58.6308161]
[1723645980006,26.4399,146.93,146.83,6.8105]
[1723645980211,6.4399,146.93,146.84,0.51663782]
[1723645980441,20.0,146.97,146.85,6.8093]
[1723645980651,20.0,146.97,146.86,20.0]
[1723645981226,57.6429,146.99,146.86,20.0]
[1723645981227,20.0,146.95,146.86,20.0]
[1723645981425,20.0,146.95,146.85,20.0]
[1723645981657,20.0,146.95,146.83,26.8105]
[1723645981841,20.0,146.95,146.84,51.81]
[1723645982037,20.0,146.95,146.85,20.0]
[1723645982746,6.1129,146.99,146.85,20.0]
[1723645982747,20.0,146.92,146.85,20.0]
[1723645982946,20.0,146.9,146.81,20.0]
[1723645983259,85.0,146.93,146.79,20.0]
[1723645983260,20.0,146.88,146.79,20.0]
[1723645983454,40.0,146.88,146.76,58.3437]
[1723645983655,45.0,146.87,146.76,6.8137]
[1723645983842,20.0,146.88,146.77,6.8132]
[1723645984263,20.0,146.88,146.74,6.4476]
[1723645984264,20.0,146.86,146.74,6.4476]
[1723645984734,20.0,146.86,146.75,6.8142]
[1723645984934,20.0,146.86,146.74,13.2622]
[1723645985150,51.53,146.88,146.74,6.4476]
[1723645985151,77.8247,146.88,146.74,6.4476]
[1723645985462,40.0,146.9,146.78,51.53]
[1723645985680,20.0,146.9,146.78,51.53]
[1723645986036,40.0,146.9,146.78,51.53]
[1723645986338,26.2947,146.93,146.82,6.8108]
[1723645986541,26.2947,146.93,146.83,65.0]
[1723645986751,16.5023,146.94,146.85,6.8092]
[1723645987065,16.5023,146.94,146.86,20.0]
[1723645987572,16.5023,146.94,146.85,20.0]
[1723645987735,20.0,146.93,146.85,20.0]
[1723645988077,16.5023,146.94,146.84,20.0]
[1723645988370,20.0,146.91,146.84,20.0]
[1723645988577,20.0,146.88,146.75,51.53]
[1723645988738,20.0,146.88,146.76,30.0]
[1723645988938,20.0,146.9,146.74,22.452]
[1723645989140,96.53,146.93,146.75,51.53]
[1723645989141,20.0,146.87,146.75,51.53]
[1723645989674,40.0,146.89,146.78,6.8128]
[1723645989851,20.0,146.89,146.79,6.8124]
[1723645990052,40.0,146.89,146.79,6.8124]
[1723645990254,20.0,146.89,146.8,20.0]
[1723645990571,71.53,146.93,146.78,51.53]
[1723645990866,16.5023,146.94,146.85,6.8094]
[1723645991078,16.5023,146.94,146.86,21.34800254]
[1723645991381,16.5023,146.94,146.86,20.0]
[1723645991742,16.5023,146.94,146.85,20.0]
[1723645991973,16.5023,146.94,146.84,20.0]
[1723645992268,16.5023,146.94,146.85,45.0]
[1723645992565,16.5023,146.94,146.86,20.0]
[1723645992987,278.9,146.99,146.88,6.8082]
[1723645993142,20.0,146.99,146.89,71.8077]
[1723645993341,16.3594,147.0,146.89,65.0]
[1723645993673,16.3594,147.0,146.89,71.8077]
[1723645993840,20.0,146.99,146.89,65.0]
[1723645994047,87.8894,147.0,146.89,20.0]
[1723645994258,36.3594,147.0,146.9,45.0]
[1723645994465,36.3594,147.0,146.89,45.0]
[1723645994776,36.3594,147.0,146.9,20.0]
[1723645995069,34.96439571,147.16,146.9,20.0]
[1723645995070,274.9514,147.05,146.9,71.53]
[1723645995244,274.9514,147.05,146.93,51.53]
[1723645995586,274.9514,147.05,146.94,65.0]
[1723645995783,16.0514,147.05,146.96,6.8045]
[1723645996078,40.0,147.1,146.97,65.0]
[1723645996266,20.0,147.08,146.97,71.8039]
[1723645996580,26.4079,147.12,147.03,6.8013]
[1723645996790,20.0,147.14,147.04,45.0]
[1723645997247,20.0,147.12,147.03,45.0]
[1723645997982,15.8722791,147.16,147.05,51.53]
[1723645998191,15.8722791,147.16,147.02,45.0]
[1723645998192,0.8426791,147.16,147.08,51.53]
[1723645998485,0.8426791,147.16,147.09,26.7981]
[1723645998653,0.8426791,147.16,147.09,20.0]
[1723645998856,20.8426791,147.16,147.09,20.0]
[1723645999060,0.8426791,147.16,147.07,20.0]
[1723645999768,20.0,147.15,147.07,20.0]
[1723645999991,20.0,147.15,147.03,20.0]
[1723646000160,0.8426791,147.16,147.05,6.8003]
[1723646000369,0.8426791,147.16,147.06,65.0]
[1723646000581,20.0,147.15,147.06,20.0]
[1723646000984,20.0,147.15,147.04,20.0]
[1723646001165,20.0,147.15,147.02,58.3313]
[1723646001166,20.0,147.13,147.03,20.0]
[1723646001366,0.8426791,147.16,147.05,51.53]
[1723646001567,0.8426791,147.16,147.06,65.0]
[1723646002067,0.8426791,147.16,147.07,6.7994]
[1723646002297,0.8426791,147.16,147.08,65.0]
[1723646002672,0.8426791,147.16,147.01,6.8021]
[1723646002673,20.0,147.13,147.01,6.8021]
[1723646002872,51.53,147.14,147.02,6.8014]
[1723646003074,20.0,147.13,147.03,6.8013]
[1723646003279,65.0,147.12,146.98,51.53]
[1723646003486,65.0,147.12,147.01,6.8021]
[1723646003685,20.0,147.11,146.98,51.53]
[1723646004077,71.53,147.14,147.03,6.8009]
[1723646004296,20.8426791,147.16,147.01,51.53]
[1723646004514,20.8426791,147.16,147.04,6.8007]
[1723646004515,40.8426791,147.16,147.04,6.8007]
[1723646004675,40.8426791,147.16,147.01,51.53]
[1723646004676,40.8426791,147.16,147.03,6.8012]
[1723646004865,20.8426791,147.16,147.05,6.8002]
[1723646005269,40.8426791,147.16,147.06,45.0]
[1723646005684,40.8426791,147.16,146.98,2.13868551]
[1723646005685,20.0,147.13,146.98,53.66868551]
[1723646005887,51.53,147.14,146.99,20.0]
[1723646006087,20.0,147.13,147.01,51.53]
[1723646006294,20.0,147.13,147.05,6.8003]
[1723646006816,20.8426791,147.16,147.05,6.8001]
[1723646007001,20.8426791,147.16,147.06,45.0]
[1723646007677,20.8426791,147.16,147.07,20.0]
[1723646007873,0.8426791,147.16,147.08,45.0]
[1723646008078,0.8426791,147.16,147.08,51.799]
[1723646008284,0.8426791,147.16,147.08,45.0]
[1723646008483,0.8426791,147.16,147.1,51.53]
[1723646008703,0.8426791,147.16,147.11,65.0]
[1723646008890,0.8426791,147.16,147.11,71.7975]
[1723646009295,0.8426791,147.16,147.11,20.0]
[1723646009495,0.8426791,147.16,147.09,20.0]
[1723646009670,0.8426791,147.16,147.08,20.0]
[1723646010003,0.8426791,147.16,147.08,26.7988]
[1723646010397,52.3726791,147.16,147.03,6.4566]
[1723646010600,40.0,147.15,147.03,6.4566]
[1723646010911,71.53,147.13,146.98,6.3519]
[1723646011109,20.0,147.11,146.98,6.3519]
[1723646011405,61.4397,147.12,146.94,30.0]
[1723646011406,20.0,147.09,146.94,30.0]
[1723646011606,20.0,147.08,146.94,30.0]
[1723646012196,20.0,147.08,146.93,57.617]
[1723646012401,71.53,147.07,146.93,57.617]
[1723646012614,20.0,147.08,146.93,57.617]
[1723646013105,20.0,147.08,146.98,6.8034]
[1723646013313,20.0,147.09,146.97,6.804]
[1723646013523,20.0,147.08,146.96,58.3345]
[1723646013682,40.0,147.1,146.97,20.0]
[1723646014184,40.0,147.1,147.01,0.0341]
[1723646014415,20.0,147.08,147.01,0.0341]
[1723646014911,20.0,147.1,147.01,0.0341]
[1723646014912,20.0,147.09,147.01,0.0341]
[1723646015219,20.0,147.05,147.01,0.0341]
[1723646015389,71.53,147.05,147.01,0.0341]
[1723646015785,20.0,147.02,146.9,7.10770978]
[1723646015981,20.0,147.01,146.89,6.4759]
[1723646016187,65.0,147.04,146.89,6.4759]
[1723646016188,20.0,147.04,146.93,6.8059]
[1723646016801,20.0,147.06,146.93,51.53]
[1723646017113,20.0,147.05,146.93,51.53]
[1723646017321,20.0,147.05,146.94,20.0]
[1723646017611,20.0,147.05,146.93,20.0]
[1723646017922,20.0,147.04,146.93,20.0]
[1723646018215,20.0,147.04,146.94,45.0]
[1723646018381,20.0,147.04,146.95,20.0]
[1723646018788,51.53,147.07,146.96,45.0]
[1723646018789,71.53,147.07,146.96,45.0]
[1723646019208,71.53,147.07,146.97,20.0]
[1723646019209,20.0,147.05,146.97,20.0]
[1723646019892,20.0,147.03,146.9,58.3373]
[1723646020090,71.53,147.01,146.87,51.53]
[1723646020294,71.53,147.01,146.89,6.4759]
[1723646020496,71.53,147.01,146.89,13.2836]
[1723646020698,71.53,147.01,146.9,6.8071]
[1723646020900,51.53,147.01,146.89,6.4759]
[1723646021216,51.53,147.04,146.92,6.806]
[1723646021418,65.0,147.06,146.88,7.1054576]
[1723646021419,20.0,146.98,146.88,7.1054576]
[1723646021604,71.53,146.98,146.84,6.0202]
[1723646021819,71.53,146.98,146.84,12.8299]
[1723646022014,71.53,146.98,146.85,6.8094]
[1723646022204,51.53,146.95,146.83,7.10568365]
[1723646022393,20.0,146.94,146.83,7.10568365]
[1723646022598,20.0,146.94,146.82,6.8109]
[1723646022920,40.0,146.94,146.82,6.8109]
[1723646023232,60.0,146.94,146.8,7.10626328]
[1723646023392,40.0,146.94,146.8,7.10626328]
[1723646023698,40.0,146.94,146.82,6.8106]
[1723646023895,20.0,146.94,146.82,6.8106]
[1723646024099,20.0,146.93,146.8,7.10626328]
[1723646024294,71.53,146.95,146.83,6.8105]
[1723646024520,71.53,146.95,146.8,7.10626328]
[1723646024521,20.0,146.94,146.8,7.10626328]
[1723646024815,65.0,146.93,146.81,20.0]
[1723646025223,93.4454,146.92,146.8,7.10626328]
[1723646025515,61.9154,146.92,146.8,13.91816328]
[1723646026226,20.0,146.91,146.8,7.10626328]
[1723646026399,20.0,146.9,146.8,7.10626328]
[1723646027126,71.53,146.89,146.8,7.10626328]
[1723646027319,20.0,146.88,146.8,7.10626328]
[1723646027525,51.53,146.86,146.8,7.10626328]
[1723646027824,51.53,146.86,146.69,15.4657]
[1723646027825,40.0,146.85,146.72,6.8156]
[1723646028126,20.0,146.83,146.71,13.91769867]
[1723646028321,20.0,146.83,146.71,7.10169867]
[1723646028322,20.0,146.81,146.71,7.10169867]
[1723646028529,71.53,146.8,146.66,6.8184]
[1723646028737,71.53,146.8,146.64,58.7398791]
[1723646028738,20.0,146.79,146.64,58.7398791]
[1723646029023,20.0,146.79,146.65,7.10498245]
[1723646029024,40.0,146.78,146.65,7.10498245]
[1723646029233,20.0,146.78,146.65,7.10498245]
[1723646029523,20.0,146.76,146.65,7.10498245]
[1723646030117,51.53,146.77,146.65,7.10498245]
[1723646030313,20.0,146.76,146.65,7.10498245]
[1723646030509,40.0,146.76,146.65,7.10498245]
[1723646030717,20.0,146.76,146.65,7.10498245]
[1723646031022,116.53,146.8,146.65,7.10498245]
[1723646031201,20.0,146.79,146.66,20.0]
[1723646031600,20.0,146.79,146.67,6.818]
[1723646031922,20.0,146.79,146.68,20.0]
[1723646031923,65.0,146.78,146.68,20.0]
[1723646032103,20.0,146.77,146.68,20.0]
[1723646032305,20.0,146.77,146.67,6.8179]
[1723646032617,20.0,146.77,146.68,20.0]
[1723646032818,20.0,146.78,146.68,20.0]
[1723646033224,20.0,146.78,146.67,20.0]
[1723646033433,20.0,146.78,146.68,45.0]
[1723646033611,20.0,146.78,146.67,45.0]
[1723646033923,20.0,146.77,146.68,20.0]
[1723646034123,20.0,146.78,146.68,20.0]
[1723646036444,20.0,146.76,146.68,20.0]
[1723646036732,51.53,146.77,146.68,20.0]
[1723646037035,20.0,146.76,146.67,20.0]
[1723646038033,71.53,146.8,146.68,45.0]
[1723646038213,20.0,146.79,146.69,20.0]
[1723646038411,20.0,146.77,146.69,20.0]
[1723646039016,20.0,146.75,146.64,7.2098791]
[1723646039231,20.0,146.73,146.64,0.8426791]
[1723646039539,61.7968,146.73,146.64,0.8426791]
[1723646039828,20.0,146.71,146.64,0.8426791]
[1723646040142,20.0,146.7,146.64,0.8426791]
[1723646040300,20.0,146.68,146.64,0.8426791]
[1723646040506,40.0,146.7,146.64,0.8426791]
[1723646040717,21.7968,146.73,146.64,0.8426791]
[1723646040915,20.0,146.72,146.64,0.8426791]
[1723646041136,40.0,146.72,146.64,0.8426791]
[1723646041641,20.0,146.72,146.64,0.8426791]
[1723646041940,20.0,146.71,146.64,0.8426791]
[1723646042133,20.0,146.72,146.64,0.8426791]
[1723646042534,15.3232,146.73,146.64,7.6615791]
[1723646042743,91.53,146.77,146.65,20.0]
[1723646043243,20.0,146.75,146.64,0.8426791]
[1723646043547,91.53,146.77,146.65,6.8185]
[1723646043753,51.53,146.77,146.66,71.8183]
[1723646043930,23.0666,146.78,146.67,6.8175]
[1723646044246,23.0666,146.78,146.68,65.0]
[1723646044452,20.0,146.77,146.68,65.0]
[1723646044625,20.0,146.77,146.68,20.0]
[1723646044830,20.0,146.73,146.65,20.0]
[1723646045147,40.0,146.77,146.64,7.6616791]
[1723646045454,23.0666,146.78,146.67,6.8179]
[1723646045738,23.0666,146.78,146.64,52.3726791]
[1723646045739,20.0,146.77,146.68,20.0]
[1723646045943,23.0666,146.78,146.68,20.0]
[1723646046436,23.0666,146.78,146.69,45.0]
[1723646046617,40.0,146.76,146.64,52.3726791]
[1723646046811,74.5966,146.78,146.64,0.8426791]
[1723646046812,40.0,146.74,146.64,0.8426791]
[1723646047017,20.0,146.72,146.64,0.8426791]
[1723646047248,20.0,146.7,146.64,0.8426791]
[1723646047446,71.53,146.72,146.64,0.8426791]
[1723646047831,20.0,146.7,146.64,0.8426791]
[1723646048146,40.0,146.7,146.64,0.8426791]
[1723646048323,20.0,146.68,146.64,0.8426791]
[1723646048719,20.0,146.66,146.64,0.8426791]
[1723646048925,20.0,146.65,146.64,0.8426791]
[1723646049331,65.0,146.65,146.64,0.8426791]
[1723646049544,20.0,146.65,146.64,0.8426791]
[1723646049919,41.1346,146.68,146.64,0.8426791]
[1723646049920,61.1346,146.68,146.64,0.8426791]
[1723646050153,20.0,146.67,146.64,0.8426791]
[1723646050450,20.0,146.7,146.64,0.8426791]
[1723646050847,40.0,146.7,146.64,0.8426791]
[1723646051537,20.0,146.7,146.64,0.8426791]
[1723646051732,20.0,146.69,146.64,0.8426791]
[1723646051937,20.0,146.65,146.64,0.8426791]
[1723646052150,20.0,146.63,146.55,6.5587]
[1723646052828,20.0,146.65,146.55,6.5587]
[1723646053227,20.0,146.66,146.56,6.823]
[1723646053442,20.0,146.66,146.55,13.3822]
[1723646054147,20.0,146.66,146.56,20.0]
[1723646054529,20.0,146.66,146.57,45.0]
[1723646054851,20.0,146.66,146.56,20.0]
[1723646054852,20.0,146.64,146.56,20.0]
[1723646055253,20.0,146.64,146.5,6.4649]
[1723646055254,20.0,146.62,146.5,6.4649]
[1723646055551,20.0,146.63,146.51,20.0]
[1723646055734,20.0,146.63,146.53,6.8244]
[1723646055931,20.0,146.63,146.54,20.0]
[1723646056623,20.0,146.63,146.53,20.0]
[1723646056840,20.0,146.63,146.54,45.0]
[1723646057635,20.0,146.63,146.53,20.0]
[1723646057854,20.0,146.63,146.52,26.8248]
[1723646058066,20.0,146.63,146.53,45.0]
[1723646058356,20.0,146.63,146.54,20.0]
[1723646058855,91.53,146.61,146.5,6.4649]
[1723646059148,20.0,146.6,146.5,6.4649]
[1723646059556,20.0,146.6,146.5,13.2907]
[1723646059730,91.53,146.61,146.5,13.2907]
[1723646060051,20.0,146.6,146.5,6.4649]
[1723646060250,20.0,146.6,146.51,20.0]